fUSD/lending_fUSD_20240619
["ID","MTS","AMOUNT","RATE_DAILY","PERIOD"]
[329870871,1718777441764,-707.05,0.00013698,2]
[329870872,1718777441774,-503.89,0.00013698,2]
[329870873,1718777441784,-500.81033353,0.00013698,2]
[329870874,1718777441793,-858.46,0.00013698,2]
[329870875,1718777441802,-586.53,0.00013698,2]
[329870876,1718777441811,-1065.82,0.00013698,2]
[329870877,1718777441821,-500.0,0.00013698,2]
[329870878,1718777441831,-500.0,0.00013698,2]
[329870879,1718777441840,-573.03,0.00013698,2]
[329870880,1718777441850,-500.0,0.00013698,2]
[329870881,1718777441860,-500.0,0.00013698,2]
[329870882,1718777441870,-743.28,0.00013698,2]
[329870883,1718777441880,-908.15,0.00013698,2]
[329870884,1718777441890,-913.83,0.00013698,2]
[329870885,1718777441900,-735.83,0.00013698,2]
[329870886,1718777441909,-763.61,0.00013698,2]
[329870887,1718777441919,-500.0,0.00013698,2]
[329870888,1718777441928,-500.0,0.00013698,2]
[329870889,1718777441937,-500.0,0.00013698,2]
[329870890,1718777441947,-997.34,0.00013698,2]
[329870891,1718777441956,-861.84,0.00013698,2]
[329870892,1718777441966,-500.0,0.00013698,2]
[329870893,1718777441975,-592.31,0.00013698,2]
[329870894,1718777441985,-1033.06,0.00013698,2]
[329870895,1718777441995,-716.79,0.00013698,2]
[329870896,1718777442005,-1192.68,0.00013698,2]
[329870897,1718777442015,-517.76584345,0.00013698,2]
[329870898,1718777442024,-572.86,0.00013698,2]
[329870899,1718777442034,-868.07,0.00013698,2]
[329870900,1718777442044,-500.0,0.00013698,2]
[329870901,1718777442054,-617.85,0.00013698,2]
[329870902,1718777442064,-500.0,0.00013698,2]
[329870903,1718777442074,-500.0,0.00013698,2]
[329870904,1718777442084,-500.0,0.00013698,2]
[329870905,1718777442093,-735.48,0.00013698,2]
[329870906,1718777442103,-1209.74,0.00013698,2]
[329870907,1718777442112,-500.0,0.00013698,2]
[329870908,1718777442122,-544.5,0.00013698,2]
[329870909,1718777442131,-640.65,0.00013698,2]
[329870910,1718777442141,-583.58,0.00013698,2]
[329870911,1718777442150,-500.0,0.00013698,2]
[329870912,1718777442160,-696.58,0.00013698,2]
[329870913,1718777442171,-500.0,0.00013698,2]
[329870914,1718777442181,-507.74022677,0.00013698,2]
[329870915,1718777442191,-500.0,0.00013698,2]
[329870916,1718777442200,-500.0,0.00013698,2]
[329870917,1718777442210,-1196.91,0.00013698,2]
[329870918,1718777442220,-500.0,0.00013698,2]
[329870919,1718777442231,-500.0,0.00013698,2]
[329870920,1718777442240,-1323.51,0.00013698,2]
[329870921,1718777442250,-1294.74,0.00013698,2]
[329870922,1718777442259,-500.0,0.00013698,2]
[329870923,1718777442269,-500.0,0.00013698,2]
[329870924,1718777442278,-702.17,0.00013698,2]
[329870925,1718777442287,-500.0,0.00013698,2]
[329870926,1718777442296,-501.8,0.00013698,2]
[329870927,1718777442306,-500.0,0.00013698,2]
[329870928,1718777442316,-505.1727127,0.00013698,2]
[329870929,1718777442325,-812.24,0.00013698,2]
[329870930,1718777442335,-500.0,0.00013698,2]
[329870931,1718777442344,-500.0,0.00013698,2]
[329870932,1718777442354,-755.41,0.00013698,2]
[329870933,1718777442363,-530.3,0.00013698,2]
[329870934,1718777442373,-500.0,0.00013698,2]
[329870935,1718777442383,-545.36,0.00013698,2]
[329870936,1718777442392,-520.71112108,0.00013698,2]
[329870937,1718777442403,-925.78,0.00013698,2]
[329870938,1718777442417,-500.0,0.00013698,2]
[329870939,1718777442426,-538.19,0.00013698,2]
[329870940,1718777442435,-1046.85,0.00013698,2]
[329870941,1718777442446,-880.86,0.00013698,2]
[329870942,1718777442455,-500.0,0.00013698,2]
[329870943,1718777442465,-924.57,0.00013698,2]
[329870944,1718777442475,-500.0,0.00013698,2]
[329870945,1718777442486,-1031.79,0.00013698,2]
[329870946,1718777442496,-500.0,0.00013698,2]
[329870947,1718777442505,-500.0,0.00013698,2]
[329870948,1718777442515,-500.0,0.00013698,2]
[329870949,1718777442525,-500.0,0.00013698,2]
[329870950,1718777442535,-500.0,0.00013698,2]
[329870951,1718777442546,-500.0,0.00013698,2]
[329870952,1718777442555,-541.59,0.00013698,2]
[329870953,1718777442565,-1070.53,0.00013698,2]
[329870954,1718777442574,-500.0,0.00013698,2]
[329870955,1718777442584,-500.0,0.00013698,2]
[329870956,1718777442593,-552.13,0.00013698,2]
[329870957,1718777442603,-500.0,0.00013698,2]
[329870958,1718777442612,-545.14,0.00013698,2]
[329870959,1718777442622,-500.0,0.00013698,2]
[329870960,1718777442632,-500.0,0.00013698,2]
[329870961,1718777442642,-500.0,0.00013698,2]
[329870962,1718777442651,-500.0,0.00013698,2]
[329870963,1718777442660,-500.0,0.00013698,2]
[329870964,1718777442671,-500.0,0.00013698,2]
[329870965,1718777442680,-500.0,0.00013698,2]
[329870966,1718777442689,-500.0,0.00013698,2]
[329870967,1718777442698,-500.0,0.00013698,2]
[329870968,1718777442707,-500.0,0.00013698,2]
[329870969,1718777442717,-500.0,0.00013698,2]
[329870970,1718777442726,-1451.66,0.00013698,2]
[329870971,1718777442736,-500.0,0.00013698,2]
[329870972,1718777442745,-500.0,0.00013698,2]
[329870973,1718777442754,-501.53090471,0.00013698,2]
[329870974,1718777442764,-500.0,0.00013698,2]
[329870975,1718777442774,-500.0,0.00013698,2]
[329870976,1718777442783,-983.85,0.00013698,2]
[329870977,1718777442792,-1207.13,0.00013698,2]
[329870978,1718777442802,-506.95008351,0.00013698,2]
[329870979,1718777442812,-500.0,0.00013698,2]
[329870980,1718777442822,-500.0,0.00013698,2]
[329870981,1718777442832,-500.0,0.00013698,2]
[329870982,1718777442841,-500.0,0.00013698,2]
[329870983,1718777442851,-2507.48,0.00013698,2]
[329870984,1718777442860,-592.95,0.00013698,2]
[329870985,1718777442870,-500.0,0.00013698,2]
[329870986,1718777442879,-373.1161824,0.00013698,2]
[329870987,1718777442900,-526.66554061,0.00013698,2]
[329870988,1718777442912,-170.26827699,0.00013698,2]
[329870989,1718777442923,-620.48254309,0.00013698,2]
[329870990,1718777442934,-250.76745691,0.00013698,2]
[329870991,1718777442944,-500.0,0.00013698,2]
[329870992,1718777442953,-500.0,0.00013698,2]
[329870993,1718777442963,-1101.78247418,0.00013698,2]
[329870994,1718777442974,-1990.44752582,0.00013698,2]
[329870995,1718777442984,-500.0,0.00013698,2]
[329870996,1718777442993,-729.88,0.00013698,2]
[329870997,1718777443002,-490.39732962,0.00013698,2]
[329870998,1718777443012,-931.08,0.00013698,2]
[329870999,1718777443021,-500.0,0.00013698,2]
[329871000,1718777443031,-2368.77,0.00013698,2]
[329871001,1718777443040,-500.0,0.00013698,2]
[329871002,1718777443049,-500.0,0.00013698,2]
[329871003,1718777443059,-500.0,0.00013698,2]
[329871004,1718777443069,-500.0,0.00013698,2]
[329871005,1718777443078,-627.21,0.00013698,2]
[329871006,1718777443088,-2188.05,0.00013698,2]
[329871007,1718777443099,-1255.85,0.00013698,2]
[329871008,1718777443109,-500.0,0.00013698,2]
[329871011,1718777443118,-500.0,0.00013698,2]
[329871014,1718777443127,-2050.44,0.00013698,2]
[329871018,1718777443136,-671.66,0.00013698,2]
[329871021,1718777443146,-819.81,0.00013698,2]
[329871022,1718777443155,-500.0,0.00013698,2]
[329871024,1718777443164,-500.0,0.00013698,2]
[329871026,1718777443176,-564.29,0.00013698,2]
[329871028,1718777443186,-500.0,0.00013698,2]
[329871029,1718777443196,-1032.67,0.00013698,2]
[329871030,1718777443207,-946.64,0.00013698,2]
[329871031,1718777443217,-500.0,0.00013698,2]
[329871032,1718777443227,-500.0,0.00013698,2]
[329871033,1718777443239,-510.61373572,0.00013698,2]
[329871034,1718777443248,-500.0,0.00013698,2]
[329871035,1718777443258,-500.0,0.00013698,2]
[329871036,1718777443267,-500.0,0.00013698,2]
[329871037,1718777443278,-1000.0,0.00013698,5]
[329871038,1718777443288,-500.0,0.00013698,2]
[329871039,1718777443298,-895.1,0.00013698,2]
[329871040,1718777443307,-500.0,0.00013698,2]
[329871041,1718777443317,-500.0,0.00013698,2]
[329871042,1718777443326,-712.92,0.00013698,2]
[329871043,1718777443335,-500.0,0.00013698,2]
[329871044,1718777443344,-589.08,0.00013698,2]
[329871045,1718777443354,-500.0,0.00013698,2]
[329871046,1718777443363,-500.0,0.00013698,2]
[329871047,1718777443373,-515.72095778,0.00013698,2]
[329871048,1718777443383,-1637.96,0.00013698,2]
[329871049,1718777443396,-250.0,0.00013698,2]
[329871050,1718777443408,-497.55974848,0.00013698,2]
[329871051,1718777443427,-94.49025152,0.00013698,2]
[329871052,1718777443436,-420.88722953,0.00013698,2]
[329871053,1718777443448,-79.11277047,0.00013698,2]
[329871054,1718777443457,-269.38690845,0.00013698,2]
[329871055,1718777443469,-230.61309155,0.00013698,2]
[329871056,1718777443478,-1790.88,0.00013698,2]
[329871057,1718777443488,-675.14,0.00013698,2]
[329871058,1718777443499,-500.0,0.00013698,2]
[329871059,1718777443510,-507.92678664,0.00013698,2]
[329871060,1718777443519,-618.9,0.00013698,2]
[329871061,1718777443529,-500.0,0.00013698,2]
[329871062,1718777443539,-763.96,0.00013698,2]
[329871063,1718777443548,-500.0,0.00013698,2]
[329871064,1718777443558,-511.28506639,0.00013698,2]
[329871065,1718777443569,-504.48247921,0.00013698,2]
[329871066,1718777443579,-804.56,0.00013698,2]
[329871067,1718777443592,-500.0,0.00013698,2]
[329871068,1718777443602,-542.15,0.00013698,2]
[329871069,1718777443611,-598.43,0.00013698,2]
[329871070,1718777443622,-500.0,0.00013698,2]
[329871071,1718777443633,-500.0,0.00013698,2]
[329871072,1718777443643,-500.0,0.00013698,2]
[329871073,1718777443653,-500.0,0.00013698,2]
[329871074,1718777443663,-500.0,0.00013698,2]
[329871075,1718777443676,-500.0,0.00013698,2]
[329871077,1718777443685,-500.0,0.00013698,2]
[329871079,1718777443694,-900.2,0.00013698,2]
[329871080,1718777443705,-554.05347969,0.00013698,2]
[329871081,1718777443715,-500.0,0.00013698,2]
[329871082,1718777443725,-500.0,0.00013698,2]
[329871083,1718777443734,-500.0,0.00013698,2]
[329871084,1718777443744,-500.0,0.00013698,2]
[329871085,1718777443754,-513.54546898,0.00013698,2]
[329871086,1718777443764,-686.41,0.00013698,2]
[329871087,1718777443774,-316.18693551,0.00013698,2]
[329871088,1718777443784,-1623.12,0.00013698,2]
[329871089,1718777443793,-1990.7,0.00013698,2]
[329871090,1718777443803,-626.16,0.00013698,2]
[329871091,1718777443812,-404.6250088,0.00013698,2]
[329871092,1718777443822,-500.0,0.00013698,2]
[329871093,1718777443831,-500.0,0.00013698,2]
[329871094,1718777443841,-1203.79,0.00013698,2]
[329871095,1718777443851,-500.0,0.00013698,2]
[329871096,1718777443860,-500.0,0.00013698,2]
[329871097,1718777443870,-500.0,0.00013698,2]
[329871098,1718777444154,-505.29899,0.00013698,2]
[329871099,1718777444164,-500.0,0.00013698,2]
[329871100,1718777444176,-500.0,0.00013698,2]
[329871101,1718777444186,-500.0,0.00013698,2]
[329871102,1718777444196,-500.0,0.00013698,2]
[329871103,1718777444206,-500.0,0.00013698,2]
[329871104,1718777444215,-509.14551394,0.00013698,2]
[329871105,1718777444224,-596.0,0.00013698,2]
[329871106,1718777444234,-1233.95,0.00013698,2]
[329871107,1718777444243,-500.0,0.00013698,2]
[329871108,1718777444253,-520.14183029,0.00013698,2]
[329871109,1718777444262,-1508.24,0.00013698,2]
[329871110,1718777444271,-601.57,0.00013698,2]
[329871111,1718777444281,-1263.33,0.00013698,2]
[329871112,1718777444291,-506.49076175,0.00013698,2]
[329871113,1718777444301,-636.79,0.00013698,2]
[329871114,1718777444310,-1459.15,0.00013698,2]
[329871115,1718777444319,-500.0,0.00013698,2]
[329871116,1718777444328,-5000.0,0.00013698,2]
[329871117,1718777444338,-503.86166302,0.00013698,2]
[329871118,1718777444347,-500.0,0.00013698,2]
[329871119,1718777444356,-500.0,0.00013698,2]
[329871120,1718777444365,-500.0,0.00013698,2]
[329871121,1718777444375,-500.0,0.00013698,2]
[329871122,1718777444384,-500.0,0.00013698,2]
[329871123,1718777444393,-502.22316503,0.00013698,2]
[329871124,1718777444404,-500.0,0.00013698,2]
[329871125,1718777444418,-500.0,0.00013698,2]
[329871126,1718777444430,-938.69,0.00013698,2]
[329871127,1718777444440,-2575.03,0.00013698,2]
[329871128,1718777444450,-1294.97,0.00013698,2]
[329871129,1718777444460,-500.0,0.00013698,2]
[329871130,1718777444469,-500.0,0.00013698,2]
[329871131,1718777444479,-502.2988528,0.00013698,2]
[329871132,1718777444492,-500.0,0.00013698,2]
[329871133,1718777444503,-500.0,0.00013698,2]
[329871134,1718777444512,-500.0,0.00013698,2]
[329871135,1718777444521,-500.0,0.00013698,2]
[329871136,1718777444530,-503.13112434,0.00013698,2]
[329871137,1718777444540,-505.06451396,0.00013698,2]
[329871138,1718777444549,-500.0,0.00013698,2]
[329871139,1718777444558,-555.3819228,0.00013698,2]
[329871140,1718777444568,-500.0,0.00013698,2]
[329871141,1718777444577,-500.0,0.00013698,2]
[329871142,1718777444587,-565.52,0.00013698,2]
[329871143,1718777444598,-503.67391227,0.00013698,2]
[329871144,1718777444607,-500.0,0.00013698,2]
[329871145,1718777444616,-555.44,0.00013698,2]
[329871146,1718777444626,-505.27345209,0.00013698,2]
[329871147,1718777444635,-630.82,0.00013698,2]
[329871148,1718777444645,-500.0,0.00013698,2]
[329871149,1718777444654,-511.33373985,0.00013698,2]
[329871150,1718777444664,-1826.31,0.00013698,2]
[329871151,1718777444675,-924.22,0.00013698,2]
[329871152,1718777444685,-500.0,0.00013698,2]
[329871153,1718777444694,-1875.3,0.00013698,2]
[329871154,1718777444704,-2291.68,0.00013698,2]
[329871155,1718777444714,-500.0,0.00013698,2]
[329871156,1718777444725,-500.0,0.00013698,2]
[329871157,1718777444735,-508.78030451,0.00013698,2]
[329871158,1718777444744,-500.0,0.00013698,2]
[329871159,1718777444754,-500.0,0.00013698,2]
[329871160,1718777444764,-500.0,0.00013698,2]
[329871161,1718777444774,-500.0,0.00013698,2]
[329871162,1718777444783,-500.0,0.00013698,2]
[329871163,1718777444792,-500.0,0.00013698,2]
[329871164,1718777444802,-500.0,0.00013698,2]
[329871165,1718777444812,-500.0,0.00013698,2]
[329871166,1718777444821,-500.0,0.00013698,2]
[329871167,1718777444830,-999.1,0.00013698,2]
[329871168,1718777444840,-500.0,0.00013698,2]
[329871169,1718777444850,-500.0,0.00013698,2]
[329871170,1718777444859,-511.26587706,0.00013698,2]
[329871171,1718777444868,-2237.93,0.00013698,2]
[329871172,1718777444878,-920.18,0.00013698,2]
[329871173,1718777444888,-920.18,0.00013698,2]
[329871174,1718777444897,-920.18,0.00013698,2]
[329871175,1718777444908,-920.18,0.00013698,2]
[329871176,1718777444919,-1833.01,0.00013698,2]
[329871177,1718777444929,-500.0,0.00013698,2]
[329871178,1718777444939,-531.81647847,0.00013698,2]
[329871179,1718777444949,-522.9083459,0.00013698,2]
[329871180,1718777444958,-920.18,0.00013698,2]
[329871181,1718777444968,-920.18,0.00013698,2]
[329871182,1718777444977,-500.0,0.00013698,2]
[329871183,1718777444986,-920.18,0.00013698,2]
[329871184,1718777444996,-920.18,0.00013698,2]
[329871185,1718777445005,-500.0,0.00013698,2]
[329871186,1718777445015,-503.45821984,0.00013698,2]
[329871187,1718777445024,-500.0,0.00013698,2]
[329871188,1718777445034,-1251.32,0.00013698,2]
[329871189,1718777445043,-708.93,0.00013698,2]
[329871190,1718777445052,-500.70412234,0.00013698,2]
[329871191,1718777445061,-1510.24,0.00013698,2]
[329871192,1718777445071,-500.0,0.00013698,2]
[329871193,1718777445081,-168.41160114,0.00013698,2]
[329871194,1718777445091,-2016.18,0.00013698,2]
[329871195,1718777445103,-2060.79,0.00013698,2]
[329871196,1718777445113,-549.23,0.00013698,2]
[329871197,1718777445122,-500.0,0.00013698,2]
[329871198,1718777445132,-623.62,0.00013698,2]
[329871199,1718777445143,-749.2,0.00013698,2]
[329871200,1718777445155,-500.0,0.00013698,2]
[329871201,1718777445165,-500.0,0.00013698,2]
[329871202,1718777445176,-500.0,0.00013698,2]
[329871203,1718777445185,-1925.78,0.00013698,2]
[329871204,1718777445194,-1548.27,0.00013698,2]
[329871205,1718777445203,-500.0,0.00013698,2]
[329871206,1718777445212,-1367.63,0.00013698,2]
[329871207,1718777445221,-500.0,0.00013698,2]
[329871208,1718777445230,-622.27,0.00013698,2]
[329871209,1718777445239,-665.02,0.00013698,2]
[329871210,1718777445248,-908.56,0.00013698,2]
[329871211,1718777445258,-538.97,0.00013698,2]
[329871212,1718777445267,-500.0,0.00013698,2]
[329871213,1718777445277,-179.75673585,0.00013698,2]
[329871214,1718777445298,-2330.28326415,0.00013698,2]
[329871215,1718777445307,-500.0,0.00013698,2]
[329871216,1718777445317,-500.0,0.00013698,2]
[329871217,1718777445327,-500.0,0.00013698,2]
[329871218,1718777445337,-504.84992746,0.00013698,2]
[329871219,1718777445348,-500.0,0.00013698,2]
[329871220,1718777445358,-225.49411042,0.00013698,2]
[329871221,1718777445447,-274.50588958,0.00013698,2]
[329871222,1718777445458,-2080.04,0.00013698,2]
[329871223,1718777445468,-500.0,0.00013698,2]
[329871224,1718777445478,-500.0,0.00013698,2]
[329871225,1718777445489,-1386.82,0.00013698,2]
[329871226,1718777445499,-155.55411042,0.00013698,2]
[329871227,1718777445547,-344.44588958,0.00013698,2]
[329871228,1718777445557,-921.0,0.00013698,2]
[329871229,1718777445567,-500.0,0.00013698,2]
[329871230,1718777445578,-767.47810378,0.00013698,2]
[329871231,1718777445590,-696.2,0.00013698,2]
[329871232,1718777445601,-423.72189622,0.00013698,2]
[329871233,1718777445611,-295.54573815,0.00013698,2]
[329871234,1718777445622,-204.45426185,0.00013698,2]
[329871235,1718777445632,-816.92,0.00013698,2]
[329871237,1718777445641,-500.0,0.00013698,2]
[329871238,1718777445651,-539.66,0.00013698,2]
[329871240,1718777445660,-500.0,0.00013698,2]
[329871241,1718777445670,-1151.82,0.00013698,2]
[329871242,1718777445680,-884.27,0.00013698,2]
[329871243,1718777445690,-500.0,0.00013698,2]
[329871244,1718777445700,-500.0,0.00013698,2]
[329871245,1718777445710,-500.0,0.00013698,2]
[329871246,1718777445720,-500.0,0.00013698,2]
[329871247,1718777445729,-500.0,0.00013698,2]
[329871248,1718777445739,-500.0,0.00013698,2]
[329871249,1718777445749,-1716.27757509,0.00013698,2]
[329871250,1718777445761,-446.21242491,0.00013698,2]
[329871251,1718777445772,-638.35675778,0.00013698,2]
[329871252,1718777445781,-500.0,0.00013698,2]
[329871253,1718777445790,-1266.04,0.00013698,2]
[329871254,1718777445800,-3.87214132,0.00013698,2]
[329871255,1718777445812,-909.24785868,0.00013698,2]
[329871256,1718777445822,-381.5247029,0.00013698,2]
[329871257,1718777446754,-593.46637594,0.00012798,2]
[329871258,1718777446781,-657.03544883,0.00012798,2]
[329871272,1718777446982,-5989.01850003,0.00012798,2]
[329871274,1718777446993,-413.15729871,0.00012798,2]
[329871276,1718777447005,-1407.87177423,0.00012798,2]
[329871278,1718777447015,-118.4752971,0.00013698,2]
[329871280,1718777447025,-500.0,0.00013698,2]
[329871282,1718777447034,-500.0,0.00013698,2]
[329871284,1718777447044,-500.0,0.00013698,2]
[329871286,1718777447053,-1100.7,0.00013698,2]
[329871288,1718777447063,-500.0,0.00013698,2]
[329871290,1718777447071,-902.25,0.00013698,2]
[329871292,1718777447081,-1584.2,0.00013698,2]
[329871294,1718777447091,-500.0,0.00013698,2]
[329871296,1718777447100,-500.0,0.00013698,2]
[329871298,1718777447109,-975.49,0.00013698,2]
[329871300,1718777447118,-500.0,0.00013698,2]
[329871302,1718777447127,-500.0,0.00013698,2]
[329871304,1718777447137,-500.0,0.00013698,2]
[329871306,1718777447146,-1121.36,0.00013698,2]
[329871308,1718777447155,-1128.65,0.00013698,2]
[329871310,1718777447164,-748.34,0.00013698,2]
[329871312,1718777447174,-500.0,0.00013698,2]
[329871314,1718777447186,-500.0,0.00013698,2]
[329871315,1718777447195,-1670.37,0.00013698,2]
[329871318,1718777447205,-732.12,0.00013698,2]
[329871320,1718777447214,-500.0,0.00013698,2]
[329871322,1718777447224,-500.0,0.00013698,2]
[329871324,1718777447234,-880.15,0.00013698,2]
[329871325,1718777447243,-500.0,0.00013698,2]
[329871327,1718777447253,-1363.1,0.00013698,2]
[329871329,1718777447263,-805.31,0.00013698,2]
[329871331,1718777447273,-500.0,0.00013698,2]
[329871333,1718777447283,-1327.28,0.00013698,2]
[329871335,1718777447292,-500.0,0.00013698,2]
[329871337,1718777447302,-1708.16,0.00013698,2]
[329871339,1718777447312,-500.0,0.00013698,2]
[329871341,1718777447322,-500.0,0.00013698,2]
[329871343,1718777447333,-1576.21,0.00013698,2]
[329871345,1718777447343,-1865.55,0.00013698,2]
[329871347,1718777447353,-500.0,0.00013698,2]
[329871349,1718777447363,-572.79,0.00013698,2]
[329871351,1718777447372,-254.00075611,0.00013698,2]
[329871353,1718777447382,-2236.8,0.00013698,2]
[329871356,1718777447392,-500.0,0.00013698,2]
[329871358,1718777447403,-508.13319608,0.00013698,2]
[329871360,1718777447418,-500.0,0.00013698,2]
[329871362,1718777447428,-500.0,0.00013698,2]
[329871364,1718777447438,-844.51,0.00013698,2]
[329871366,1718777447448,-729.98,0.00013698,2]
[329871368,1718777447458,-500.0,0.00013698,2]
[329871370,1718777447468,-695.65,0.00013698,2]
[329871372,1718777447477,-1337.33,0.00013698,2]
[329871374,1718777447489,-1094.06,0.00013698,2]
[329871376,1718777447499,-500.0,0.00013698,2]
[329871378,1718777447509,-500.0,0.00013698,2]
[329871380,1718777447518,-500.0,0.00013698,2]
[329871382,1718777447527,-500.0,0.00013698,2]
[329871384,1718777447536,-1484.65,0.00013698,2]
[329871386,1718777447545,-1178.53,0.00013698,2]
[329871388,1718777447555,-235.21362204,0.00013698,2]
[329871390,1718777447564,-1067.23,0.00013698,2]
[329871391,1718777447573,-500.0,0.00013698,2]
[329871393,1718777447582,-500.0,0.00013698,2]
[329871396,1718777447592,-1057.31,0.00013698,2]
[329871398,1718777447602,-843.06,0.00013698,2]
[329871399,1718777447611,-500.0,0.00013698,2]
[329871401,1718777447620,-500.0,0.00013698,2]
[329871403,1718777447630,-508.69,0.00013698,2]
[329871405,1718777447639,-500.0,0.00013698,2]
[329871407,1718777447649,-500.0,0.00013698,2]
[329871409,1718777447658,-1766.98,0.00013698,2]
[329871411,1718777447668,-1292.77,0.00013698,2]
[329871413,1718777447677,-500.0,0.00013698,2]
[329871415,1718777447687,-522.90031558,0.00013698,2]
[329871417,1718777447696,-500.0,0.00013698,2]
[329871419,1718777447706,-2638.66,0.00013698,2]
[329871421,1718777447715,-500.0,0.00013698,2]
[329871423,1718777447724,-1831.28,0.00013698,2]
[329871426,1718777447734,-1523.69,0.00013698,2]
[329871428,1718777447743,-500.0,0.00013698,2]
[329871430,1718777447752,-500.0,0.00013698,2]
[329871431,1718777447762,-500.0,0.00013698,2]
[329871434,1718777447772,-500.0,0.00013698,2]
[329871436,1718777447782,-500.0,0.00013698,2]
[329871438,1718777447791,-658.33,0.00013698,2]
[329871439,1718777447800,-500.0,0.00013698,2]
[329871442,1718777447810,-679.91,0.00013698,2]
[329871444,1718777447820,-500.0,0.00013698,2]
[329871446,1718777447830,-500.0,0.00013698,2]
[329871448,1718777447839,-812.08,0.00013698,2]
[329871450,1718777447849,-1857.68,0.00013698,2]
[329871452,1718777447858,-521.25687578,0.00013698,2]
[329871454,1718777447867,-1126.59,0.00013698,2]
[329871456,1718777447876,-500.0,0.00013698,2]
[329871458,1718777447886,-901.82,0.00013698,2]
[329871460,1718777447895,-350.07575031,0.00013698,2]
[329871462,1718777447904,-500.0,0.00013698,2]
[329871464,1718777447913,-500.0,0.00013698,2]
[329871465,1718777447923,-500.0,0.00013698,2]
[329871467,1718777447935,-2083.43,0.00013698,2]
[329871470,1718777447944,-1287.02,0.00013698,2]
[329871471,1718777447953,-500.0,0.00013698,2]
[329871473,1718777447962,-627.97,0.00013698,2]
[329871475,1718777447971,-723.03,0.00013698,2]
[329871477,1718777447980,-1247.6,0.00013698,2]
[329871480,1718777447990,-1346.63,0.00013698,2]
[329871481,1718777447999,-500.0,0.00013698,2]
[329871483,1718777448008,-500.0,0.00013698,2]
[329871485,1718777448018,-500.0,0.00013698,2]
[329871487,1718777448027,-500.0,0.00013698,2]
[329871489,1718777448035,-360.69779446,0.00013698,2]
[329871491,1718777448044,-694.42,0.00013698,2]
[329871493,1718777448054,-499.99731444,0.00013698,2]
[329871495,1718777448063,-500.0,0.00013698,2]
[329871497,1718777448072,-428.52886908,0.00013698,2]
[329871525,1718777448321,-500.0,0.00013698,2]
[329871527,1718777448336,-600.0,0.00013698,2]
[329871529,1718777448345,-500.0,0.00013698,2]
[329871531,1718777448354,-500.0,0.00013698,2]
[329871533,1718777448365,-645.79,0.00013698,2]
[329871535,1718777448374,-548.83,0.00013698,2]
[329871537,1718777448383,-716.85,0.00013698,2]
[329871539,1718777448393,-500.0,0.00013698,2]
[329871541,1718777448406,-1270.34,0.00013698,2]
[329871543,1718777448415,-500.0,0.00013698,2]
[329871545,1718777448424,-898.24,0.00013698,2]
[329871547,1718777448435,-2445.39,0.00013698,2]
[329871549,1718777448446,-849.79,0.00013698,2]
[329871551,1718777448456,-766.49,0.00013698,2]